Workbook

Sheet Tabla # 1
A2: Carniceria Santanita
A3: Tabla # 16
A4: Balanza de Inversión Inicial
A5: (Cifras en dolares)
A7: CONCEPTOS | B7: COSTO
A8: Inversión en Capital de Trabajo:
A9: CAJA | B9: 1000
A10: BANCOS | B10: 5000
A11: Saldo minimo de Banco | B11: 1000
A12: INVENTARIOS | B12: 2324.82
A13: EQUIPO DE REPARTO | B13: 1300
A14: MATERIAL Y SUMINISTRO | B14: 224.7191
A15: Sub total inversión en Capital de Trabajo | B15: =SUM(B9:B14) -> 10849.5391
A16: Inversión en Capital Fijo:
A17: EDIFICIOS | B17: 15000
A18: Equipo de oficina | B18: 1855.81
A21: Sub total inversión en Capital Fijo | B21: =SUM(B17:B20) -> 16855.81
A22: Inversión en Activos Intangibles:
A23: INVESTIGACIÓN | B23: 600
A24: Organización | B24: 579.43
A25: Instalacion | B25: 180.19
A27: Sub total inversión en Activos Intangibles | B27: =SUM(B23:B26) -> 1359.62
A28: MONTO DE LA INVERSIÓN INICIAL | B28: =B15+B21+B27 -> 29064.9691
A30: Notas:
A31: De esta manera se espera que se comporte la inversion inicial de este proyecto sabiendo | B31: este proyecto, en caja
A32: se ha determinado esa cantidad para solventar cualquier pronostico que se requiera, asi tambien
A33: en banco se ha determinado es a cantidad para estar en la capacidad de poder Hacerle | B33: idad de poder hacerle
A34: frente a los pagos de cada colaborador, asi tambien se estima que en inventario de tenga | B34: en inventario se tenga
A35: ese monto de dinero para poder cubrir las ventas iniciales de este proyecto.
A36: tambien se ha determinado el precio que tendra la instalacion del edificio por medio de
A37: un ingeniero, asi tambien se reflejan los gastos de contitucion para la legalizacion de este
A38: negocio.

Sheet Tabla # 2 y 3
A1: Carniceria Santanita
A3: Tabla # 17
A4: Proyección de ingresos
A5: (Cifras en Dolares)
A6: CONCEPTOS | B6: AÑOS
B7: 1 | C7: 2 | D7: 3 | E7: 4 | F7: 5
A8: Ingresos por venta de productos | B8: =[1]Hoja1!D9 -> 326360.0268 | C8: =[1]Hoja1!E9 -> 390154.3079 | D8: =[1]Hoja1!F9 -> 466419.0716 | E8: =[1]Hoja1!G9 -> 557609.3765 | F8: =[1]Hoja1!H9 -> 666608.376
A9: Ingresos por venta de servicios | B9: 0 | C9: =B9*1.02 -> 0 | D9: =C9*1.02 -> 0 | E9: 0 | F9: 0
A10: Otros ingresos | B10: 0 | C10: =B10 -> 0 | D10: =C10 -> 0 | E10: 0 | F10: 0
A11: Ingresos totales | B11: =SUM(B8:B10) -> 326360.0268 | C11: =SUM(C8:C10) -> 390154.3079 | D11: =SUM(D8:D10) -> 466419.0716 | E11: 557609.3765 | F11: 666608.376
A13: Notas
A14: De esta manera se comportan los ingreos por venta de los productos la explicacion de la obtencion de estos datos ya fue
A15: presentada en el estudio de mercado, ya que solo se presentan ingresos por ventas.
A27: Carniceria Santanita
A29: Tabla # 18
A30: Proyección de costos variables
A31: (Cifras en Dolardes>>
A32: CONCEPTOS | B32: AÑOS
B33: 1 | C33: 2 | D33: 3 | E33: 4 | F33: 5
A34: Costo variable de productos | B34: 286231.7382 | C34: 342193.4778 | D34: 409096.4091 | E34: 489079.6662 | F34: 584700.6099 | G34: 699016.5955
A35: Costo variable de servicios | C35: =B35*1.02 -> 0 | D35: =C35*1.02 -> 0 | E35: =D35*1.02 -> 0 | F35: =E35*1.02 -> 0
A36: Otros costos variables. | C36: =B36 -> 0 | D36: =C36 -> 0 | E36: =D36 -> 0 | F36: =E36 -> 0
A37: Costos variables totales | B37: =SUM(B34:B36) -> 286231.7382 | C37: =SUM(C34:C36) -> 342193.4778 | D37: 409096.4091 | E37: 489079.6662 | F37: 584700.6099
A39: Notas
A40: Se identificaron los costos variables habiendo obtenido un costo promedio el cual se ha registrado sacando el total de las
A41: cantidades demandadas para cada producto, asi obteniendo el total de cantidades demandadas y pasando a dividir las
A42: cantidades demandadas de cada producto por las cantidades totales de los productos obteniendo asi el peso para cada
A43: producto y asi reflejar el costo en que el proveedor dara los productos, y asi multiplicar el costo por el peso y asi se obtiene
A44: el costo promedio para cada producto y asi se pasa ha sumar la sumas de todos los costos promedios por cada producto y asi
A45: se obtiene el costo promedio de todos los productos. | C45: y asi se procede a multiplicar la participacion de mercado, consumo
A46: de compras, costo promedio y asi se obtienen los costos variables de los productos.

Sheet Tabla # 4
B1: Carniceria Santanita
A2: Cifras Dolares
A4: Tabla: 19
A5: Proyección de Costos Fijos
A6: CONCEPTOS | B6: AÑOS
B7: 1 | C7: 2 | D7: 3 | E7: 4 | F7: 5
A8: Gastos Personales:
A9: Salarios | B9: 15280.8988 | C9: =B9*1.1 -> 16808.98868 | D9: =C9*1.05 -> 17649.43811 | E9: =D9*1.05 -> 18531.91002 | F9: 19458.50552
A10: Prestaciones de ley | B10: =B9*25% -> 3820.2247 | C10: =C9*25% -> 4202.24717 | D10: =D9*25% -> 4412.359529 | E10: =E9*22.222222% -> 4118.202185 | F10: =F9*22.222222% -> 4324.112295
A11: Obligaciones patronales | B11: =B9*20% -> 3056.17976 | C11: =C9*21% -> 3529.887623 | D11: =D9*21% -> 3706.382004 | E11: 3891.701104 | F11: 4086.286159
A12: Sub total Gastos Personales | B12: =SUM(B9:B11) -> 22157.30326 | C12: =SUM(C9:C11) -> 24541.12347 | D12: 25768.17965 | E12: 26541.81331 | F12: 27868.90397
A13: Gastos No Personales:
A14: Cargos básicos | B14: 809.04 | C14: 809.04 | D14: 809.04 | E14: 809.04 | F14: 809.04
A16: Propaganda y publicidad | B16: 898.92 | C16: 898.92 | D16: 898.92 | E16: 898.92 | F16: 898.92
A17: Otros
A18: Sub total Gastos No Personales | B18: =SUM(B14:B17) -> 1707.96 | C18: =SUM(C14:C17) -> 1707.96 | D18: =SUM(D14:D17) -> 1707.96 | E18: =SUM(E14:E17) -> 1707.96 | F18: =SUM(F14:F17) -> 1707.96
A19: COSTOS FIJOS TOTALES | B19: =B12+B18 -> 23865.26326 | C19: =C12+C18 -> 26249.08347 | D19: =D12+D18 -> 27476.13965 | E19: =E12+E18 -> 28249.77331 | F19: =F12+F18 -> 29576.86397
A21: Notas
A22: Ds esta manera los salarios estan conformados de acuerdo a la ley de los salarios minimos de nicaragua con sus reformas
A23: todo esto con sus respectivos prestaciones y obligaciones de patronales, | D23: s, que lo componen el instituto nacional de
A24: seguridad social y el instituto nacional de tecnologia, asi tambien se muestran los cargos basicos como agua y luz los
A25: cuales son los servicios que requiere este proyecto, a la vez se reflejan gastos de propaganda y publicidad los cuales son
A26: los establecidos en el presupuesto de marketing.

Sheet Tabla # 5
B2: Carniceria Santanita
B3: Cifras en Dolares
A4: Tabla 20
A5: Programa de Depreciación de Activos
A7: ACTIVO | B7: CANTIDAD | C7: COSTO INSTALADO | D7: VALOR RESIDUAL | E7: VIDA ÚTIL | F7: DEPREC. ANUAL | G7: VIDA DEL PROYECTO | H7: DEPREC. ACUMULADA | I7: VALOR EN LIBROS
A8: MESAS | B8: 3 | C8: 31.8352 | D8: 6.367 | E8: 5 | F8: =IFERROR(((C8-D8)/E8)*B8, 0) -> 15.28092 | G8: 5 | H8: =F8*G8 -> 76.4046 | I8: =(C8*B8)-H8 -> 19.101
A9: EXIBIDOR | B9: 2 | C9: 486.8913 | D9: 97.3782 | E9: 5 | F9: =IFERROR(((C9-D9)/E9)*B9, 0) -> 155.80524 | G9: 5 | H9: =F9*G9 -> 779.0262 | I9: =(C9*B9)-H9 -> 194.7564
A10: EQUIPO DE REPARTO | B10: 1 | C10: 1300 | D10: 260 | E10: 5 | F10: 208 | G10: 5 | H10: 1040 | I10: 260
A11: COMPUTADORAS | B11: 3 | C11: 262.1722 | D11: 157.3033 | E11: 5 | F11: =IFERROR(((C11-D11)/E11)*B11, 0) -> 62.92134 | G11: 5 | H11: =F11*G11 -> 314.6067 | I11: =(C11*B11)-H11 -> 471.9099
A12: fricer | B12: 2 | C12: 749.0636 | D12: 149.8127 | E12: 5 | F12: 239.70036 | G12: 5 | H12: 1198.5018 | I12: 299.6254
A13: EDIFICIO | B13: 1 | C13: 12000 | D13: 2400 | E13: 5 | F13: 1920 | G13: 5 | H13: 9600 | I13: 2400
A17: TOTALES | F17: =SUM(F8:F16) -> 2601.70786 | I17: =SUM(I8:I9) -> 213.8574

Sheet Tabla # 6
A1: Carniceria Santanita
A3: Tabla # 21
A4: Costo de Capital Promedio Ponderado del Proyecto
A6: FUENTE DE FINANCIAMIENTO | C6: MONTO | D6: PESO | E6: COSTO | F6: COSTO PONDERADO
A7: Recursos propios | C7: 11625.988 | D7: =IFERROR(C7/$C$10, 0) -> 0.4 | E7: 0.17 | F7: =D7*E7 -> 0.068
A8: Préstamos bancarios | C8: 17438.982 | D8: =IFERROR(C8/$C$10, 0) -> 0.6 | E8: 0.0948 | F8: =D8*E8 -> 0.05688
A10: Inversión Total | C10: =SUM(C7:C9) -> 29064.97 | D10: CCPP | F10: =SUM(F7:F9) -> 0.12488
A13: De esta manera se espera que se comporte el costo del capital promedio ponderado del proyecto
A14: donde los socios han puesto una tasa determinada con el fin de obtener mejores beneficios
A15: y ala vez el banco ha estimado esa tasa para los prestamos en concepto de vivienda, y asi se ha determinado
A16: una tasa de credito moderada ya que es del | D16: 40-60 y por lo tanto no es muy riesgosa.

Sheet Datos (hidden)
A1: 1
A2: 2
A3: 3
A4: 4
A5: 5
A6: 6
A7: 7
A8: 8
A9: 9
A10: 10
A11: 11
A12: 12
A13: 13
A14: 14
A15: 15
A16: 16
A17: 17
A18: 18
A19: 19
A20: 20
A21: 21
A22: 22
A23: 23
A24: 24
A25: 25
A26: 26
A27: 27
A28: 28
A29: 29
A30: 30
A31: 31
A32: 32
A33: 33
A34: 34
A35: 35
A36: 36
A37: 37
A38: 38
A39: 39
A40: 40
A41: 41
A42: 42
A43: 43
A44: 44
A45: 45
A46: 46
A47: 47
A48: 48
A49: 49
A50: 50
A51: 51
A52: 52
A53: 53
A54: 54
A55: 55
A56: 56
A57: 57
A58: 58
A59: 59
A60: 60
A61: 61
A62: 62
A63: 63
A64: 64
A65: 65
A66: 66
A67: 67
A68: 68
A69: 69
A70: 70
A71: 71
A72: 72
A73: 73
A74: 74
A75: 75
A76: 76
A77: 77
A78: 78
A79: 79
A80: 80
A81: 81
A82: 82
A83: 83
A84: 84
A85: 85
A86: 86
A87: 87
A88: 88
A89: 89
A90: 90
A91: 91
A92: 92
A93: 93
A94: 94
A95: 95
A96: 96
A97: 97
A98: 98
A99: 99
A100: 100
A101: 101
A102: 102
A103: 103
A104: 104
A105: 105
A106: 106
A107: 107
A108: 108
A109: 109
A110: 110
A111: 111
A112: 112
A113: 113
A114: 114
A115: 115
A116: 116
A117: 117
A118: 118
A119: 119
A120: 120
A121: 121
A122: 122
A123: 123
A124: 124
A125: 125
A126: 126
A127: 127
A128: 128
A129: 129
A130: 130
A131: 131
A132: 132
A133: 133
A134: 134
A135: 135
A136: 136
A137: 137
A138: 138
A139: 139
A140: 140
A141: 141
A142: 142
A143: 143
A144: 144
A145: 145
A146: 146
A147: 147
A148: 148
A149: 149
A150: 150
A151: 151
A152: 152
A153: 153
A154: 154
A155: 155
A156: 156
A157: 157
A158: 158
A159: 159
A160: 160
A161: 161
A162: 162
A163: 163

Sheet Amortizaciones
B1: Carniceria Santanita
A2: Tabla de Amortización de Préstamos
A4: Monto del Préstamo: | C4: 17438.982 | D4: Suma Principal: | E4: 17438.982
C5: 0
A6: Tasa de Interés Mensual: | C6: 0.0079 | D6: Suma Intereses: | E6: 4525.89
A8: Plazo (Meses): | C8: 60
A10: N° CUOTA | B10: PAGO | C10: INTERESES | D10: AMORTIZACIÓN | E10: SALDO
A11: 0 | B11: 0 | C11: 0 | D11: 0 | E11: 17438.982
A12: 1 | B12: 366.08 | C12: 137.77 | D12: 228.31 | E12: 17210.672
A13: 2 | B13: 366.08 | C13: 135.96 | D13: 230.12 | E13: 16980.552
A14: 3 | B14: 366.08 | C14: 134.15 | D14: 231.93 | E14: 16748.622
A15: 4 | B15: 366.08 | C15: 132.31 | D15: 233.77 | E15: 16514.852
A16: 5 | B16: 366.08 | C16: 130.47 | D16: 235.61 | E16: 16279.242
A17: 6 | B17: 366.08 | C17: 128.61 | D17: 237.47 | E17: 16041.772
A18: 7 | B18: 366.08 | C18: 126.73 | D18: 239.35 | E18: 15802.422
A19: 8 | B19: 366.08 | C19: 124.84 | D19: 241.24 | E19: 15561.182
A20: 9 | B20: 366.08 | C20: 122.93 | D20: 243.15 | E20: 15318.032
A21: 10 | B21: 366.08 | C21: 121.01 | D21: 245.07 | E21: 15072.962
A22: 11 | B22: 366.08 | C22: 119.08 | D22: 247 | E22: 14825.962
A23: 12 | B23: 366.08 | C23: 117.13 | D23: 248.95 | E23: 14577.012 | F23: =SUM(D12:D23) -> 2861.97
A24: 13 | B24: 366.08 | C24: 115.16 | D24: 250.92 | E24: 14326.092 | F24: =SUM(C13:C24) -> 1508.38 | G24: =F24*30% -> 452.514
A25: 14 | B25: 366.08 | C25: 113.18 | D25: 252.9 | E25: 14073.192
A26: 15 | B26: 366.08 | C26: 111.18 | D26: 254.9 | E26: 13818.292
A27: 16 | B27: 366.08 | C27: 109.16 | D27: 256.92 | E27: 13561.372
A28: 17 | B28: 366.08 | C28: 107.13 | D28: 258.95 | E28: 13302.422
A29: 18 | B29: 366.08 | C29: 105.09 | D29: 260.99 | E29: 13041.432
A30: 19 | B30: 366.08 | C30: 103.03 | D30: 263.05 | E30: 12778.382
A31: 20 | B31: 366.08 | C31: 100.95 | D31: 265.13 | E31: 12513.252
A32: 21 | B32: 366.08 | C32: 98.85 | D32: 267.23 | E32: 12246.022
A33: 22 | B33: 366.08 | C33: 96.74 | D33: 269.34 | E33: 11976.682
A34: 23 | B34: 366.08 | C34: 94.62 | D34: 271.46 | E34: 11705.222
A35: 24 | B35: 366.08 | C35: 92.47 | D35: 273.61 | E35: 11431.612 | F35: =SUM(D24:D35) -> 3145.4
A36: 25 | B36: 366.08 | C36: 90.31 | D36: 275.77 | E36: 11155.842
A37: 26 | B37: 366.08 | C37: 88.13 | D37: 277.95 | E37: 10877.892
A38: 27 | B38: 366.08 | C38: 85.94 | D38: 280.14 | E38: 10597.752
A39: 28 | B39: 366.08 | C39: 83.72 | D39: 282.36 | E39: 10315.392
A40: 29 | B40: 366.08 | C40: 81.49 | D40: 284.59 | E40: 10030.802
A41: 30 | B41: 366.08 | C41: 79.24 | D41: 286.84 | E41: 9743.962
A42: 31 | B42: 366.08 | C42: 76.98 | D42: 289.1 | E42: 9454.862
A43: 32 | B43: 366.08 | C43: 74.69 | D43: 291.39 | E43: 9163.472
A44: 33 | B44: 366.08 | C44: 72.39 | D44: 293.69 | E44: 8869.782
A45: 34 | B45: 366.08 | C45: 70.07 | D45: 296.01 | E45: 8573.772
A46: 35 | B46: 366.08 | C46: 67.73 | D46: 298.35 | E46: 8275.422
A47: 36 | B47: 366.08 | C47: 65.38 | D47: 300.7 | E47: 7974.722 | F47: =SUM(D36:D47) -> 3456.89
A48: 37 | B48: 366.08 | C48: 63 | D48: 303.08 | E48: 7671.642
A49: 38 | B49: 366.08 | C49: 60.61 | D49: 305.47 | E49: 7366.172
A50: 39 | B50: 366.08 | C50: 58.19 | D50: 307.89 | E50: 7058.282
A51: 40 | B51: 366.08 | C51: 55.76 | D51: 310.32 | E51: 6747.962
A52: 41 | B52: 366.08 | C52: 53.31 | D52: 312.77 | E52: 6435.192
A53: 42 | B53: 366.08 | C53: 50.84 | D53: 315.24 | E53: 6119.952
A54: 43 | B54: 366.08 | C54: 48.35 | D54: 317.73 | E54: 5802.222
A55: 44 | B55: 366.08 | C55: 45.84 | D55: 320.24 | E55: 5481.982
A56: 45 | B56: 366.08 | C56: 43.31 | D56: 322.77 | E56: 5159.212
A57: 46 | B57: 366.08 | C57: 40.76 | D57: 325.32 | E57: 4833.892
A58: 47 | B58: 366.08 | C58: 38.19 | D58: 327.89 | E58: 4506.002
A59: 48 | B59: 366.08 | C59: 35.6 | D59: 330.48 | E59: 4175.522 | F59: =SUM(D48:D59) -> 3799.2
A60: 49 | B60: 366.08 | C60: 32.99 | D60: 333.09 | E60: 3842.432
A61: 50 | B61: 366.08 | C61: 30.36 | D61: 335.72 | E61: 3506.712
A62: 51 | B62: 366.08 | C62: 27.7 | D62: 338.38 | E62: 3168.332
A63: 52 | B63: 366.08 | C63: 25.03 | D63: 341.05 | E63: 2827.282
A64: 53 | B64: 366.08 | C64: 22.34 | D64: 343.74 | E64: 2483.542
A65: 54 | B65: 366.08 | C65: 19.62 | D65: 346.46 | E65: 2137.082
A66: 55 | B66: 366.08 | C66: 16.88 | D66: 349.2 | E66: 1787.882
A67: 56 | B67: 366.08 | C67: 14.12 | D67: 351.96 | E67: 1435.922
A68: 57 | B68: 366.08 | C68: 11.34 | D68: 354.74 | E68: 1081.182
A69: 58 | B69: 366.08 | C69: 8.54 | D69: 357.54 | E69: 723.642
A70: 59 | B70: 366.08 | C70: 5.72 | D70: 360.36 | E70: 363.282
A71: 60 | B71: 366.152 | C71: 2.87 | D71: 363.282 | E71: 0 | F71: =SUM(D60:D71) -> 4175.522

Sheet Flujo
A1: Carniceria Santanita
A2: Tabla # 23
A3: Flujo de Caja del Proyecto
E5: Años
E6: 0 | F6: 1 | G6: 2 | H6: 3 | I6: 4 | J6: 5
A7: Inversiones realizadas en el año Cero
A8: Inversión en Capital de Trabajo | E8: =-'Tabla # 1'!B15 -> -10849.5391
A9: Inversión en Activos Fijos | E9: =-'Tabla # 1'!B21 -> -16855.81
A10: Inversión en Activos Intangibles | E10: =-'Tabla # 1'!B27 -> -1359.62
A11: Flujos Operativos durante la vida del Proyecto
A12: Ingresos por ventas | F12: ='Tabla # 2 y 3'!B11 -> 326360.0268 | G12: ='Tabla # 2 y 3'!C11 -> 390154.3079 | H12: ='Tabla # 2 y 3'!D11 -> 466419.0716 | I12: ='Tabla # 2 y 3'!E11 -> 557609.3765 | J12: ='Tabla # 2 y 3'!F11 -> 666608.376
A13: Costos variables | F13: =-'Tabla # 2 y 3'!B37 -> -286231.7382 | G13: =-'Tabla # 2 y 3'!C37 -> -342193.4778 | H13: =-'Tabla # 2 y 3'!D37 -> -409096.4091 | I13: =-'Tabla # 2 y 3'!E37 -> -489079.6662 | J13: =-'Tabla # 2 y 3'!F37 -> -584700.6099
A14: Costos Fijos | F14: =-'Tabla # 4'!B19 -> -23865.26326 | G14: =-'Tabla # 4'!C19 -> -26249.08347 | H14: =-'Tabla # 4'!D19 -> -27476.13965 | I14: =-'Tabla # 4'!E19 -> -28249.77331 | J14: =-'Tabla # 4'!F19 -> -29576.86397
A15: Depreciaciones | F15: =-'Tabla # 5'!F17 -> -2601.70786 | G15: =F15 -> -2601.70786 | H15: =G15 -> -2601.70786 | I15: -2601.70786 | J15: -2601.70786
A16: Amortizaciones | F16: =E10/J6 -> -271.924 | G16: =F16 -> -271.924 | H16: =G16 -> -271.924 | I16: -271.924 | J16: -271.924
A17: Utilidades antes de Impuestos | F17: =SUM(F12:F16) -> 13389.39343 | G17: =SUM(G12:G16) -> 18838.11474 | H17: 26972.89103 | I17: 37406.30515 | J17: 49457.27031
A18: Impuesto sobre la renta 30% | F18: =IF(F17>0, -F17*30%, 0) -> -4016.81803 | G18: =IF(G17>0, -G17*30%, 0) -> -5651.434423 | H18: -8091.867308 | I18: -11221.89155 | J18: -14837.18109
A19: Utilidades después de impuestos | F19: =SUM(F17:F18) -> 9372.575402 | G19: =SUM(G17:G18) -> 13186.68032 | H19: 18881.02372 | I19: 26184.41361 | J19: 34620.08922
A20: (+) Depreciaciones y Amortizaciones | F20: =ABS(SUM(F15:F16)) -> 2873.63186 | G20: =ABS(SUM(G15:G16)) -> 2873.63186 | H20: 2873.63186 | I20: 2873.63186 | J20: 2873.63186
A21: Flujos de Caja Anuales | F21: =SUM(F19:F20) -> 12246.20726 | G21: =SUM(G19:G20) -> 16060.31218 | H21: 21754.65558 | I21: 29058.04547 | J21: =SUM(J19:J20) -> 37493.72108
A22: Flujo de Caja del ultimo año
A23: Retorno del Capital de Trabajo | J23: =ABS(E8) -> 10849.5391
A24: Valor de salvamento neto | J24: ='Tabla # 5'!I17 -> 213.8574
A25: Flujo Final Total | J25: =SUM(J23:J24) -> 11063.3965
A26: Flujo de Caja Neto sin Financiamiento | E26: =SUM(E8:E10) -> -29064.9691 | F26: =F21 -> 12246.20726 | G26: =G21 -> 16060.31218 | H26: 21754.65558 | I26: 29058.04547 | J26: =J21+J25 -> 48557.11758
A27: Financiamiento
A28: Préstamos bancarios | E28: =monto -> 17438.982
A29: Amortización de la Deuda | F29: =-IF(term>0, SUM(Amortizaciones!D12:D23), 0) -> -2861.97 | G29: =-IF(term>12, SUM(Amortizaciones!D24:D35), 0) -> -3145.4 | H29: =-IF(term>12, SUM(Amortizaciones!D36:D47), 0) -> -3456.89 | I29: =-IF(term>12, SUM(Amortizaciones!D48:D59), 0) -> -3799.2 | J29: =-IF(term>12, SUM(Amortizaciones!D60:D71), 0) -> -4175.522
A30: Escudo fiscal de los intereses | F30: =IF(term>0, SUM(Amortizaciones!C13:C24)*30%, 0) -> 452.514 | G30: =IF(term>12, SUM(Amortizaciones!C25:C36)*30%, 0) -> 366.813 | H30: =IF(term>12, SUM(Amortizaciones!C37:C48)*30%, 0) -> 272.628 | I30: =IF(term>12, SUM(Amortizaciones!C49:C60)*30%, 0) -> 169.125 | J30: =IF(term>12, SUM(Amortizaciones!C61:C72)*30%, 0) -> 55.356
A31: Flujo de Caja Neto con Financiamiento | E31: =SUM(E26:E28) -> -11625.9871 | F31: =SUM(F26:F30) -> 9836.751262 | G31: =SUM(G26:G30) -> 13281.72518 | H31: =SUM(H26:H30) -> 18570.39358 | I31: =SUM(I26:I30) -> 25427.97047 | J31: =SUM(J26:J30) -> 44436.95158
A35: INDICADORES DE EVALUACIÓN FINANCIERA
A36: Período de Recuperación de la Inversión
A37: ="Valor presente neto al " & TEXT(CCPP*100, "#,##0.00")& "%" -> Valor presente neto al 12.49% | E37: =NPV(CCPP, F31:J31)+E31 -> 61215.76057
A38: Tasa Interna de Retorno | F38: =IRR(E31:J31) -> 1.137378075
A39: Relación Beneficio Costo | F39: =(E37+ABS(E31))/ABS(E31) -> 6.26542478
A41: Consideramos que este proyecto que este proyecto es sumamente rentable ya que con los datos facilitados en las tablas anteriores , la inversion inicial se recuperara en el plazo de 4 menes presentando unos unos indicadores de evaliacion financiera beneficiosos para la ejecucion de este.
